bitfinex-derivatives/quotes_BTCF0:USTF0_20250811
["timestamp","ask_amount","ask_price","bid_price","bid_amount"]
[1754934696403,0.3758747,119620.0,119610.0,0.2668778]
[1754934696599,0.3758747,119620.0,119610.0,0.2357578]
[1754934696898,0.3758747,119620.0,119610.0,0.2668778]
[1754934697089,0.3758747,119620.0,119610.0,0.41717752]
[1754934697489,0.3758747,119620.0,119610.0,0.80135467]
[1754934697694,0.3768747,119620.0,119610.0,0.80035467]
[1754934697894,0.3768747,119620.0,119610.0,0.79835467]
[1754934698091,0.3778747,119620.0,119610.0,0.79835467]
[1754934699101,0.188938,119620.0,119610.0,0.79835467]
[1754934699293,0.117018,119620.0,119610.0,0.79835467]
[1754934699490,0.117018,119620.0,119610.0,0.64805495]
[1754934701704,0.116018,119620.0,119610.0,0.64805495]
[1754934702104,0.117018,119620.0,119610.0,0.64805495]
[1754934702402,0.116018,119620.0,119610.0,0.64805495]
[1754934703499,0.117018,119620.0,119610.0,0.64805495]
[1754934705894,0.153868,119620.0,119610.0,0.64805495]
[1754934706407,0.153868,119620.0,119610.0,0.79834006]
[1754934706599,0.2006147,119620.0,119610.0,0.41416291]
[1754934706905,0.76136185,119620.0,119610.0,0.41416291]
[1754934707500,0.76136185,119620.0,119610.0,0.23398291]
[1754934707800,0.76136185,119620.0,119610.0,0.23398881]
[1754934708007,0.3771847,119620.0,119610.0,0.23398881]
[1754934708207,0.76136185,119620.0,119610.0,0.23398881]
[1754934709807,0.76136185,119620.0,119610.0,0.1225537]
[1754934710210,0.76136185,119620.0,119610.0,0.0001]
[1754934710398,0.3771847,119620.0,119610.0,0.0837038]
[1754934710604,0.76136185,119620.0,119610.0,0.0837038]
[1754934710803,0.76136185,119620.0,119610.0,0.1225538]
[1754934713104,0.76136185,119620.0,119610.0,0.2376538]
[1754934713303,0.76136185,119620.0,119610.0,0.2065638]
[1754934713508,0.76136185,119620.0,119610.0,0.12296]
[1754934714403,0.76136185,119620.0,119610.0,0.2065637]
[1754934717810,0.76136185,119620.0,119610.0,0.2620437]
[1754934718012,0.3771847,119620.0,119610.0,0.2620437]
[1754934718217,0.76136185,119620.0,119610.0,0.2620437]
[1754934718911,0.3771847,119620.0,119610.0,0.2620437]
[1754934719106,0.76136185,119620.0,119610.0,0.2620437]
[1754934720711,0.76136185,119620.0,119610.0,0.17844]
[1754934720903,0.76136185,119620.0,119610.0,0.14735]
[1754934721100,0.76136185,119620.0,119610.0,0.10915]
[1754934721711,0.76136185,119620.0,119610.0,0.08476]
[1754934721913,0.3771847,119620.0,119610.0,0.08476]
[1754934722214,0.76136185,119620.0,119610.0,0.08476]
[1754934722512,0.76136185,119620.0,119610.0,0.1683637]
[1754934722711,0.76136185,119620.0,119610.0,0.15405]
[1754934723614,0.76136185,119620.0,119610.0,0.2376537]
[1754934724018,0.76136185,119620.0,119610.0,0.15405]
[1754934724316,0.3771847,119620.0,119610.0,0.2620437]
[1754934724508,0.76136185,119620.0,119610.0,0.2620437]
[1754934725216,0.3771847,119620.0,119610.0,0.2620437]
[1754934725417,0.76136185,119620.0,119610.0,0.2620437]
[1754934725617,0.76136185,119620.0,119610.0,0.17844]
[1754934726514,0.3771847,119620.0,119610.0,0.17844]
[1754934726817,0.76136185,119620.0,119610.0,0.17844]
[1754934731517,0.3771847,119620.0,119610.0,0.2620437]
[1754934731716,0.76136185,119620.0,119610.0,0.2620437]
[1754934732520,0.2006147,119620.0,119610.0,0.64622085]
[1754934732722,0.9797747,119620.0,119610.0,0.64622085]
[1754934732923,1.0161847,119620.0,119610.0,0.64622085]
[1754934733120,1.1164347,119620.0,119610.0,0.64622085]
[1754934733725,1.1164347,119620.0,119610.0,0.2620437]
[1754934738426,0.9797747,119620.0,119610.0,0.64622085]
[1754934738724,0.117018,119620.0,119610.0,0.64622085]
[1754934738927,0.9797347,119620.0,119610.0,0.64622085]
[1754934739528,0.9797347,119620.0,119610.0,0.79650596]
[1754934740931,0.9797347,119620.0,119610.0,0.41232881]
[1754934741230,1.0426647,119620.0,119610.0,0.79650596]
[1754934741430,1.0686547,119620.0,119610.0,0.79650596]
[1754934742730,1.0686547,119620.0,119610.0,0.64622085]
[1754934743329,0.985058,119620.0,119610.0,0.65445423]
[1754934743528,0.896138,119620.0,119610.0,0.65445423]
[1754934744425,0.9797347,119620.0,119610.0,0.65445423]
[1754934744632,1.0426647,119620.0,119610.0,0.65445423]
[1754934744831,1.1132447,119620.0,119610.0,0.65445423]
[1754934745436,1.1132447,119620.0,119610.0,0.64622085]
[1754934745734,1.029648,119620.0,119610.0,0.64622085]
[1754934745925,1.1132448,119620.0,119610.0,0.64622085]
[1754934746434,1.029648,119620.0,119610.0,0.64622085]
[1754934746640,1.1132447,119620.0,119610.0,0.64622085]
[1754934747335,1.029648,119620.0,119610.0,0.64622085]
[1754934747535,1.029648,119620.0,119610.0,0.79650596]
[1754934749239,0.117018,119620.0,119610.0,0.80475802]
[1754934750139,0.117018,119620.0,119610.0,0.65447291]
[1754934752536,0.117018,119620.0,119610.0,0.27029576]
[1754934752739,0.152108,119620.0,119610.0,0.64622085]
[1754934752957,0.205938,119620.0,119610.0,0.64622085]
[1754934753135,0.205938,119620.0,119610.0,0.79650596]
[1754934753441,0.225948,119620.0,119610.0,0.79650596]
[1754934753630,0.225948,119620.0,119610.0,0.80488707]
[1754934753835,0.225948,119620.0,119610.0,0.41232881]
[1754934754136,0.225948,119620.0,119610.0,0.79650596]
[1754934754543,0.250528,119620.0,119610.0,0.41232881]
[1754934754743,0.2251947,119620.0,119610.0,0.79650596]
[1754934755045,0.3717147,119620.0,119610.0,0.79650596]
[1754934755340,0.75589185,119620.0,119610.0,0.34303881]
[1754934755540,0.75589185,119620.0,119610.0,0.1927537]
[1754934755741,0.75589185,119620.0,119610.0,0.1225537]
[1754934755937,0.75589185,119620.0,119610.0,0.0837037]
[1754934756343,0.75589185,119620.0,119610.0,0.0001]
[1754934756838,0.75589185,119620.0,119610.0,0.0837037]
[1754934758043,0.3717147,119620.0,119610.0,0.0837037]
[1754934758247,0.75589185,119620.0,119610.0,0.0837037]
[1754934758455,0.75589185,119620.0,119610.0,0.1227937]
[1754934758746,0.3717147,119620.0,119610.0,0.1227937]
[1754934759544,1.1505947,119620.0,119610.0,0.1227937]
[1754934761252,1.53477185,119620.0,119610.0,0.1227937]
[1754934762545,0.3341247,119620.0,119610.0,0.46788085]
[1754934762847,1.1505947,119620.0,119610.0,0.64265085]
[1754934763047,1.1505947,119620.0,119610.0,0.2584737]
[1754934764045,1.53477185,119620.0,119610.0,0.0837037]
[1754934764244,1.53477185,119620.0,119610.0,0.0001]
[1754934764444,0.0836106,119600.0,119590.0,0.23390161]
[1754934764738,1.41766775,119600.0,119590.0,0.15028511]
[1754934764944,1.41766775,119600.0,119590.0,0.23390271]
[1754934765144,1.53258575,119600.0,119590.0,0.23390271]
[1754934765344,1.53258575,119600.0,119590.0,0.0836176]
[1754934765849,0.0836176,119590.0,119580.0,0.3735796]
[1754934766050,0.2546176,119590.0,119580.0,0.3736796]
[1754934766648,0.26317048,119590.0,119580.0,0.3736796]
[1754934767048,0.33100213,119590.0,119580.0,0.3736796]
[1754934767244,0.33100213,119590.0,119580.0,0.4848796]
[1754934767450,0.33100213,119590.0,119580.0,0.4779496]
[1754934767849,0.33100213,119590.0,119580.0,0.4809496]
[1754934768050,0.33100213,119590.0,119580.0,0.4829496]
[1754934768450,0.33100213,119590.0,119580.0,0.399327]
[1754934768651,0.33100213,119590.0,119580.0,0.364927]
[1754934768854,0.33100213,119590.0,119580.0,0.1976818]
[1754934769152,0.33100213,119590.0,119580.0,0.1250918]
[1754934769548,0.33100213,119590.0,119580.0,0.1611518]
[1754934769853,0.33100213,119590.0,119580.0,0.2617618]
[1754934770153,0.44592013,119590.0,119580.0,0.2617618]
[1754934770653,0.43736725,119590.0,119580.0,0.2617618]
[1754934773153,0.39987725,119590.0,119580.0,0.64593895]
[1754934773348,1.04524735,119590.0,119580.0,0.64593895]
[1754934773549,1.04524735,119590.0,119580.0,0.2617618]
[1754934773755,1.07886735,119590.0,119580.0,0.64593895]
[1754934773958,1.10558735,119590.0,119580.0,0.64593895]
[1754934774155,0.96162965,119590.0,119580.0,0.64593895]
[1754934774557,1.04524735,119590.0,119580.0,0.2617618]
[1754934774758,1.15045735,119590.0,119580.0,0.64593895]
[1754934774956,1.17717735,119590.0,119580.0,0.64593895]
[1754934775962,1.09355965,119590.0,119580.0,0.64593895]
[1754934776162,1.17717725,119590.0,119580.0,0.64593895]
[1754934776860,1.17717725,119590.0,119580.0,0.2617618]
[1754934777058,1.17717725,119590.0,119580.0,0.64593895]
[1754934777366,1.17717725,119590.0,119580.0,0.2617618]
[1754934777661,1.06683965,119590.0,119580.0,0.64593895]
[1754934777862,0.18274965,119590.0,119580.0,0.64593895]
[1754934778067,0.96162965,119590.0,119580.0,0.64593895]
[1754934778759,0.18274965,119590.0,119580.0,0.64593895]
[1754934779166,0.18274965,119590.0,119580.0,0.79622406]
[1754934780472,0.0001,119600.0,119590.0,0.0836176]
[1754934780668,0.0001,119600.0,119590.0,0.79111986]
[1754934780868,0.321779,119630.0,119610.0,0.2508063]
[1754934781165,0.420089,119630.0,119620.0,0.64081375]
[1754934781355,1.198889,119630.0,119620.0,0.2566366]
[1754934782459,1.199889,119630.0,119620.0,0.2566366]
[1754934782660,1.12497658,119630.0,119620.0,0.2567366]
[1754934783060,1.1173938,119630.0,119620.0,0.64091375]
[1754934783264,0.9734597,119630.0,119620.0,0.64091375]
[1754934783465,1.0347997,119630.0,119620.0,0.64091375]
[1754934783664,1.1497177,119630.0,119620.0,0.64091375]
[1754934783866,1.15824012,119630.0,119620.0,0.64091375]
[1754934784369,1.1497177,119630.0,119620.0,0.64091375]
[1754934785471,1.1487177,119630.0,119620.0,0.64091375]
[1754934785673,1.1487177,119630.0,119620.0,0.53814375]
[1754934785975,1.1487177,119630.0,119620.0,0.64091375]
[1754934786163,1.1487177,119630.0,119620.0,0.2567366]
[1754934786564,1.1487177,119630.0,119620.0,0.1045566]
[1754934786772,1.1487177,119630.0,119620.0,0.0836966]
[1754934787564,1.1487177,119630.0,119620.0,0.2567366]
[1754934788576,1.15723804,119630.0,119620.0,0.2567366]
[1754934791774,1.1487177,119630.0,119620.0,0.2567366]
[1754934791968,1.1487177,119630.0,119620.0,0.1539666]
[1754934792169,1.1487177,119630.0,119620.0,0.1045566]
[1754934792372,1.15691627,119630.0,119620.0,0.0836966]
[1754934792877,1.54109342,119630.0,119620.0,0.0836966]
[1754934793076,1.15691627,119630.0,119620.0,0.0836966]
[1754934795779,1.54109342,119630.0,119620.0,0.0836967]
[1754934796079,1.15691627,119630.0,119620.0,0.0836967]
[1754934797279,1.15691627,119630.0,119620.0,0.0001]
[1754934797987,1.54109342,119630.0,119620.0,0.0001]
[1754934798279,1.54109342,119630.0,119620.0,0.0836966]
[1754934800180,1.15691627,119630.0,119620.0,0.0836966]
[1754934800375,1.54109342,119630.0,119620.0,0.0836966]
[1754934800580,1.15691627,119630.0,119620.0,0.0836966]
[1754934803384,1.54109342,119630.0,119620.0,0.0836966]
[1754934805282,1.54109342,119630.0,119620.0,0.0001]
[1754934805486,1.54109342,119630.0,119610.0,0.2508063]
[1754934805487,0.0835967,119620.0,119610.0,0.0836027]
[1754934805683,0.0836036,119610.0,119600.0,0.334438]
[1754934805877,1.41105075,119610.0,119600.0,0.334438]
[1754934806077,1.0268736,119610.0,119600.0,0.334438]
[1754934807181,1.0268736,119610.0,119600.0,0.336438]
[1754934807381,1.0268736,119610.0,119600.0,0.336538]
[1754934807382,1.0269736,119610.0,119600.0,0.336538]
[1754934808082,1.0269736,119610.0,119600.0,0.370328]
[1754934808778,1.0269736,119610.0,119600.0,0.426628]
[1754934808984,1.0269736,119610.0,119600.0,0.60748311]
[1754934809783,1.0269736,119610.0,119600.0,0.457198]
[1754934809986,1.0269736,119610.0,119600.0,0.60758562]
[1754934810185,1.1418916,119610.0,119600.0,0.60758562]
[1754934810685,1.1418916,119610.0,119600.0,0.65620562]
[1754934815583,1.1418916,119610.0,119600.0,0.505818]
[1754934817694,1.1418916,119610.0,119600.0,0.357108]
[1754934818687,1.52606875,119610.0,119600.0,0.2539285]
[1754934820288,1.52606875,119610.0,119600.0,0.0867095]
[1754934820488,1.52606875,119610.0,119600.0,0.23708717]
[1754934821192,1.1418916,119610.0,119600.0,0.23708717]
[1754934821396,1.52606875,119610.0,119600.0,0.23708717]
[1754934821989,1.52606875,119610.0,119600.0,0.0867095]
[1754934822591,1.56016875,119610.0,119600.0,0.0867095]
[1754934824989,1.1759916,119610.0,119600.0,0.2549895]
[1754934826794,1.56016875,119610.0,119600.0,0.2549895]
[1754934827497,1.1759916,119610.0,119600.0,0.2549895]
[1754934828894,0.3977116,119610.0,119600.0,0.2549895]
[1754934829089,1.1757116,119610.0,119600.0,0.63916665]
[1754934829690,0.995548,119610.0,119600.0,0.63916665]
[1754934829889,0.951338,119610.0,119600.0,0.63916665]
[1754934830089,1.1718117,119610.0,119600.0,0.63916665]
[1754934830297,1.1718117,119610.0,119600.0,0.2549895]
[1754934831403,1.1718117,119610.0,119600.0,0.1548995]
[1754934832092,1.1718117,119610.0,119600.0,0.1901995]
[1754934832401,1.1718117,119610.0,119600.0,0.2564995]
[1754934834200,1.1718117,119610.0,119600.0,0.1548995]
[1754934834389,1.1377117,119610.0,119600.0,0.2256395]
[1754934834587,1.1377117,119610.0,119600.0,0.1548995]
[1754934834788,1.1377117,119610.0,119600.0,0.1062795]
[1754934835508,1.1377117,119610.0,119600.0,0.1415795]
[1754934835894,1.1377117,119610.0,119600.0,0.2577495]
[1754934836603,1.1377117,119610.0,119600.0,0.40812717]
[1754934837099,1.054108,119610.0,119600.0,0.40812717]
[1754934837600,1.1377117,119610.0,119600.0,0.79230432]
[1754934838097,1.054108,119610.0,119600.0,0.79230432]
[1754934838304,1.1377117,119610.0,119600.0,0.79230432]
[1754934838602,1.054108,119610.0,119600.0,0.79230432]
[1754934838804,0.115018,119610.0,119600.0,1.17648147]
[1754934838999,0.892738,119610.0,119600.0,1.17648147]
[1754934839203,0.892738,119610.0,119600.0,0.79230432]
[1754934840709,0.892738,119610.0,119600.0,0.64192665]
[1754934840901,0.892738,119610.0,119600.0,1.0261038]
[1754934841103,0.892658,119610.0,119600.0,1.17640792]
[1754934841396,0.09553503,119640.0,119630.0,0.0835897]
[1754934841600,0.94149503,119640.0,119630.0,0.63928685]
[1754934841805,0.94004,119640.0,119630.0,0.63928685]
[1754934842807,0.94849637,119640.0,119630.0,0.63928685]
[1754934843108,1.03217907,119640.0,119630.0,0.2552097]
[1754934843306,1.03417907,119640.0,119630.0,0.2552097]
[1754934844007,0.94314,119640.0,119630.0,0.2552097]
[1754934844207,1.0267227,119640.0,119630.0,0.2552097]
[1754934844510,1.1416407,119640.0,119630.0,0.63938685]
[1754934844907,1.1416407,119640.0,119630.0,0.2552097]
[1754934845106,1.1416407,119640.0,119630.0,0.63938685]
[1754934846009,1.058058,119640.0,119630.0,0.63938685]
[1754934846309,1.057898,119640.0,119630.0,0.63938685]
[1754934846609,1.1414807,119640.0,119630.0,0.53778685]
[1754934846818,1.1414807,119640.0,119630.0,0.63938685]
[1754934847514,1.1414807,119640.0,119630.0,0.2552097]
[1754934848517,1.52465785,119640.0,119630.0,0.0836897]
[1754934849105,1.52465785,119640.0,119630.0,0.0001]
[1754934849509,1.52611288,119640.0,119630.0,0.0001]
[1754934849916,1.52611288,119640.0,119610.0,0.3344011]
[1754934849917,0.0835967,119620.0,119610.0,0.3344011]
[1754934850101,1.0233167,119620.0,119610.0,0.3344011]
[1754934850404,1.1382347,119620.0,119610.0,0.3697011]
[1754934850604,1.0937947,119620.0,119610.0,0.3697011]
[1754934851011,1.0937947,119620.0,119610.0,0.4051411]
[1754934851318,1.47807185,119620.0,119610.0,0.0837037]
[1754934851706,1.47807185,119620.0,119610.0,0.0867037]
[1754934851913,1.0938947,119620.0,119610.0,0.0867037]
[1754934854013,1.0938947,119620.0,119610.0,0.0031]
[1754934854213,1.0938947,119620.0,119610.0,0.0867037]
[1754934854518,1.47807185,119620.0,119610.0,0.0867037]
[1754934855016,1.0938947,119620.0,119610.0,0.0867037]
[1754934856105,1.0938947,119620.0,119610.0,0.1220037]
[1754934856412,1.47807185,119620.0,119610.0,0.0031]
[1754934858615,1.47807185,119620.0,119610.0,0.0011]
[1754934858816,1.47907185,119620.0,119610.0,0.0011]
[1754934860318,1.47907185,119620.0,119610.0,0.0001]
[1754934860319,1.48007185,119620.0,119610.0,0.0001]
[1754934862217,1.48007185,119620.0,119610.0,0.0837037]
[1754934863120,1.48007185,119620.0,119610.0,0.0001]
[1754934863416,0.0836107,119600.0,119590.0,0.0836133]
[1754934863621,1.36251785,119600.0,119590.0,0.0836133]
[1754934864011,0.9783407,119600.0,119590.0,0.0836133]
[1754934864608,0.9783407,119600.0,119590.0,0.0846133]
[1754934864821,0.9784407,119600.0,119590.0,0.0847133]
[1754934865024,0.9784407,119600.0,119590.0,0.0867133]
[1754934865216,1.0933587,119600.0,119590.0,0.0867133]
[1754934865907,1.0933587,119600.0,119590.0,0.2045233]
[1754934866117,1.10159817,119600.0,119590.0,0.2045233]
[1754934866317,1.10159817,119600.0,119590.0,0.0867133]
[1754934868017,1.48577532,119600.0,119590.0,0.0867133]
[1754934869520,1.10159817,119600.0,119590.0,0.0867133]
[1754934870922,1.48577532,119600.0,119590.0,0.0867133]
[1754934871222,1.10159817,119600.0,119590.0,0.0867133]
[1754934871524,1.10159817,119600.0,119590.0,0.1200333]
[1754934871918,1.10159817,119600.0,119590.0,0.1574433]
[1754934872415,1.10159817,119600.0,119590.0,0.1791933]
[1754934872816,1.10159817,119600.0,119590.0,0.2045233]
[1754934873418,1.10159817,119600.0,119590.0,0.1084633]
[1754934873623,1.48577532,119600.0,119590.0,0.0867133]
[1754934874127,1.48577532,119600.0,119590.0,0.0031]
[1754934875826,1.10159817,119600.0,119590.0,0.0867177]
[1754934876025,1.48581532,119600.0,119590.0,0.0867177]
[1754934876930,1.48781532,119600.0,119590.0,0.0847177]
[1754934877120,1.48781532,119600.0,119590.0,0.0837177]
[1754934877321,1.48881532,119600.0,119590.0,0.0837177]
[1754934878125,1.48881532,119600.0,119590.0,0.0001]
[1754934879826,1.50764503,119600.0,119590.0,0.0001]
[1754934880027,1.50764503,119600.0,119590.0,0.0837177]
[1754934880427,1.50764503,119600.0,119590.0,0.0001]
[1754934880724,1.50764503,119600.0,119590.0,0.0837177]
[1754934882132,1.50764503,119600.0,119590.0,0.0001]
[1754934883333,1.50712677,119600.0,119590.0,0.0001]
[1754934884336,0.0836247,119580.0,119570.0,0.04496412]
[1754934884537,0.0836387,119560.0,119550.0,0.381983]
[1754934884832,0.8604387,119560.0,119550.0,0.462383]
[1754934885336,0.9753567,119560.0,119550.0,0.378739]
[1754934885537,0.9754567,119560.0,119550.0,0.378839]
[1754934886935,0.9754567,119560.0,119550.0,0.380839]
[1754934887137,0.9754567,119560.0,119550.0,0.76501615]
[1754934887536,0.9754567,119560.0,119550.0,0.76601615]
[1754934888338,0.9754567,119560.0,119550.0,0.381839]
[1754934888637,0.99398682,119560.0,119550.0,0.381839]
[1754934890233,0.21718682,119560.0,119550.0,0.381839]
[1754934890426,0.13354812,119560.0,119550.0,0.76601615]
[1754934890738,0.99398682,119560.0,119550.0,0.76601615]
[1754934890935,0.91034812,119560.0,119550.0,0.76601615]
[1754934891439,0.91030812,119560.0,119550.0,0.76601615]
[1754934892439,0.99394682,119560.0,119550.0,0.381839]
[1754934892638,0.99394682,119560.0,119550.0,0.76601615]
[1754934893339,0.91030812,119560.0,119550.0,0.381839]
[1754934893537,0.99394682,119560.0,119550.0,0.76601615]
[1754934893735,0.91030812,119560.0,119550.0,0.76601615]
[1754934896642,0.91030812,119560.0,119550.0,0.381839]
[1754934896941,0.99394682,119560.0,119550.0,0.76601615]
[1754934898041,0.91030812,119560.0,119550.0,0.76601615]
[1754934898341,0.99394682,119560.0,119550.0,0.76601615]
[1754934899544,0.91030812,119560.0,119550.0,0.76601615]
[1754934899745,0.99394682,119560.0,119550.0,0.76601615]
[1754934900945,0.91030812,119560.0,119550.0,0.76601615]
[1754934902343,0.13354812,119560.0,119550.0,0.76601615]
[1754934902547,0.91018812,119560.0,119550.0,0.76601615]
[1754934903051,0.13354812,119560.0,119550.0,1.1501933]
[1754934903246,0.38845709,119590.0,119580.0,0.0836247]
[1754934903545,0.38845709,119590.0,119580.0,0.1993147]
[1754934903546,1.15253709,119590.0,119580.0,0.1993147]
[1754934903745,1.15253709,119590.0,119580.0,0.19662387]
[1754934904248,0.29235359,119590.0,119580.0,0.19662387]
[1754934904547,0.29235359,119590.0,119580.0,0.58090102]
[1754934904548,1.07097359,119590.0,119580.0,0.58090102]
[1754934905447,1.07097359,119590.0,119580.0,0.19672387]
[1754934907549,1.07093359,119590.0,119580.0,0.19672387]
[1754934919953,0.98698639,119590.0,119580.0,0.58090102]
[1754934920652,0.21082639,119590.0,119580.0,0.58090102]
[1754934920850,0.98694639,119590.0,119580.0,0.58090102]
[1754934921052,1.37112354,119590.0,119580.0,0.0837247]
[1754934921259,0.59500354,119590.0,119580.0,0.1670247]
[1754934921453,1.37112354,119590.0,119580.0,0.1183547]
[1754934923459,0.0836247,119580.0,119570.0,0.1672603]
[1754934923756,0.0836317,119570.0,119560.0,0.2855403]
[1754934923957,0.9163917,119570.0,119560.0,0.2855403]
[1754934924656,1.30056885,119570.0,119560.0,0.2855403]
[1754934924856,0.9164917,119570.0,119560.0,0.3109103]
[1754934925158,1.30066885,119570.0,119560.0,0.3463403]
[1754934925353,1.30066885,119570.0,119560.0,0.3473403]
[1754934925568,1.30066885,119570.0,119560.0,0.3707403]
[1754934926148,1.30066885,119570.0,119560.0,0.3353103]
[1754934926355,1.30066885,119570.0,119560.0,0.2866403]
[1754934926654,1.30066885,119570.0,119560.0,0.1203687]
[1754934927359,0.9164917,119570.0,119560.0,0.1203687]
[1754934927563,1.30066885,119570.0,119560.0,0.1203687]
[1754934927858,1.30066885,119570.0,119560.0,0.2044687]
[1754934928753,0.83282,119570.0,119560.0,0.58864585]
[1754934929159,0.77614,119570.0,119560.0,0.58864585]
[1754934929358,0.9164517,119570.0,119560.0,0.58864585]
[1754934929861,0.83282,119570.0,119560.0,0.58864585]
[1754934930254,0.05678,119570.0,119560.0,0.58864585]
[1754934930459,0.81106,119570.0,119560.0,0.58864585]
[1754934930659,0.81106,119570.0,119560.0,0.2044687]
[1754934930857,0.81106,119570.0,119560.0,0.58864585]
[1754934931260,0.83282,119570.0,119560.0,0.58864585]
[1754934931461,0.9164517,119570.0,119560.0,0.58864585]
[1754934931661,0.9164517,119570.0,119560.0,0.2044687]
[1754934931960,0.9164517,119570.0,119560.0,0.58864585]
[1754934932161,0.83282,119570.0,119560.0,0.58864585]
[1754934932763,0.77614,119570.0,119560.0,0.58864585]
[1754934932958,0.81102,119570.0,119560.0,0.58864585]
[1754934933366,0.0001,119570.0,119560.0,0.972823]
[1754934933553,0.0001,119570.0,119560.0,1.140095]
[1754934933863,0.7761,119570.0,119560.0,1.140095]
[1754934935666,0.7761,119570.0,119560.0,1.33493179]
[1754934936257,0.7761,119570.0,119560.0,0.95075464]
[1754934936663,0.81102,119570.0,119560.0,0.95075464]
[1754934937257,0.83278,119570.0,119560.0,0.78348264]
[1754934937756,0.9164117,119570.0,119560.0,0.78348264]
[1754934937956,0.9164117,119570.0,119560.0,0.2044687]
[1754934938159,1.30058885,119570.0,119560.0,0.2044687]
[1754934938357,0.9164117,119570.0,119560.0,0.1690387]
[1754934939665,0.9164117,119570.0,119560.0,0.2044687]
[1754934941168,0.9164117,119570.0,119560.0,0.2042487]
[1754934941966,0.9164117,119570.0,119560.0,0.58842585]
[1754934942568,0.05678,119570.0,119560.0,0.58842585]
[1754934942768,0.83262,119570.0,119560.0,0.58842585]
[1754934942972,0.05678,119570.0,119560.0,0.58842585]
[1754934943167,0.77594,119570.0,119560.0,0.58842585]
[1754934943362,0.81086,119570.0,119560.0,0.58842585]
[1754934944256,0.79447109,119570.0,119560.0,0.972603]
[1754934944870,0.79446736,119570.0,119560.0,0.972603]
[1754934945168,0.01862736,119570.0,119560.0,0.58842585]
[1754934945369,0.8291476,119570.0,119560.0,0.58842585]
[1754934945966,0.8509076,119570.0,119560.0,0.58842585]
[1754934946566,0.8293123,119570.0,119560.0,0.58842585]
[1754934946763,0.7943923,119570.0,119560.0,0.58842585]
[1754934947363,0.8293123,119570.0,119560.0,0.58842585]
[1754934947568,0.82956927,119570.0,119560.0,0.58842585]
[1754934947770,0.85132927,119570.0,119560.0,0.2042487]
[1754934947970,0.85132927,119570.0,119560.0,0.58842585]
[1754934948369,0.07548927,119570.0,119560.0,0.58842585]
[1754934948570,0.85124927,119570.0,119560.0,0.58842585]
[1754934948771,0.85082945,119570.0,119560.0,0.58842585]
[1754934949073,0.85082945,119570.0,119560.0,0.58846876]
[1754934950475,0.79414945,119570.0,119560.0,0.58846876]
[1754934950872,0.01877331,119570.0,119560.0,0.97264591]
[1754934951376,0.10226869,119590.0,119580.0,0.0836248]
[1754934951576,0.89943869,119590.0,119580.0,0.58376195]
[1754934951875,0.14239175,119590.0,119580.0,0.58376195]
[1754934952174,0.91811175,119590.0,119580.0,0.58376195]
[1754934952565,0.08667196,119590.0,119580.0,0.58376195]
[1754934952768,0.86249196,119590.0,119580.0,0.58386195]
[1754934952971,0.86332089,119590.0,119580.0,0.58386195]
[1754934953177,0.08760089,119590.0,119580.0,0.58386195]
[1754934953473,0.08860089,119590.0,119580.0,0.75110995]
[1754934953674,0.08860089,119590.0,119580.0,0.94594674]
[1754934953982,0.03403,119610.0,119600.0,0.0836107]
[1754934954186,0.80971,119610.0,119600.0,0.967925]
[1754934954379,0.84952058,119610.0,119600.0,0.54946785]
[1754934954571,1.31730153,119610.0,119600.0,0.0836107]
[1754934955071,0.0836107,119600.0,119590.0,0.0470217]
[1754934955275,0.46778785,119600.0,119590.0,0.0471217]
[1754934955672,0.0836107,119600.0,119590.0,0.0471217]
[1754934955978,0.8592507,119600.0,119590.0,0.0837117]
[1754934956270,0.8592507,119600.0,119590.0,0.46788885]
[1754934956476,0.8592507,119600.0,119590.0,0.0837117]
[1754934956678,0.8592107,119600.0,119590.0,0.54725885]
[1754934957175,0.27128488,119610.0,119590.0,0.54725885]
[1754934957476,0.18567418,119610.0,119600.0,0.53865785]
[1754934957676,0.96123418,119610.0,119600.0,0.53865785]
[1754934957880,0.01846058,119610.0,119600.0,0.58374785]
[1754934958084,0.79402058,119610.0,119600.0,0.58374785]
[1754934958377,0.87762438,119610.0,119600.0,0.58374785]
[1754934958571,0.79402058,119610.0,119600.0,0.58374785]
[1754934958766,0.79398058,119610.0,119600.0,0.58374785]
[1754934959166,0.79398058,119610.0,119600.0,0.1995707]
[1754934959376,0.0001,119610.0,119600.0,0.58374785]
[1754934959679,0.79487394,119610.0,119600.0,0.58374785]
[1754934959869,0.87847774,119610.0,119600.0,0.58374785]
[1754934960069,0.87947774,119610.0,119600.0,0.58374785]
[1754934960467,0.8800763,119610.0,119600.0,0.58374785]
[1754934960782,0.7954725,119610.0,119600.0,0.58374785]
[1754934960975,0.7973012,119610.0,119600.0,0.58374785]
[1754934961876,0.77862,119610.0,119600.0,0.58374785]
[1754934962179,0.7973012,119610.0,119600.0,0.58374785]
[1754934962776,0.77862,119610.0,119600.0,0.58374785]
[1754934963174,0.79744173,119610.0,119600.0,0.58374785]
[1754934963375,0.79725905,119610.0,119600.0,0.58374785]
[1754934964680,0.79703096,119610.0,119600.0,0.58374785]
[1754934964876,0.88063476,119610.0,119600.0,0.50437785]
[1754934965071,1.26481191,119610.0,119600.0,0.0836107]
[1754934965276,0.88063476,119610.0,119600.0,0.0836107]
[1754934965874,1.26481191,119610.0,119600.0,0.0836107]
[1754934966782,0.88063476,119610.0,119600.0,0.0836107]
[1754934967084,1.26481191,119610.0,119600.0,0.0836107]
[1754934967783,0.88063476,119610.0,119600.0,0.0836107]
[1754934967978,1.26481191,119610.0,119600.0,0.0836107]
[1754934968375,0.0836107,119600.0,119590.0,0.2979662]
[1754934968570,0.46778785,119600.0,119590.0,0.3345562]
[1754934968784,0.46778785,119600.0,119590.0,0.1673248]
[1754934969279,0.0836107,119600.0,119590.0,0.55150195]
[1754934969477,0.0836107,119600.0,119590.0,0.63087195]
[1754934970780,0.0846107,119600.0,119590.0,0.63087195]
[1754934973290,0.1274307,119600.0,119590.0,0.2943148]
[1754934975894,0.04382,119600.0,119590.0,0.67849195]
[1754934976288,0.1274303,119600.0,119590.0,0.67849195]
[1754934977592,0.04382,119600.0,119590.0,0.67849195]
[1754934977793,0.02041,119600.0,119590.0,0.67849195]
[1754934977994,0.1040203,119600.0,119590.0,0.67849195]
[1754934978594,0.02041,119600.0,119590.0,0.67849195]
[1754934978788,0.77636,119600.0,119590.0,0.67849195]
[1754934979296,0.9016503,119600.0,119590.0,0.67849195]
[1754934980599,0.9016503,119600.0,119590.0,0.2943148]
[1754934980896,0.9016503,119600.0,119590.0,0.67849195]
[1754934985787,0.9016503,119600.0,119590.0,0.2943148]
[1754934986099,0.9016503,119600.0,119590.0,0.67849195]
[1754934988301,0.8599703,119600.0,119590.0,0.67849195]
[1754934988807,0.0846103,119600.0,119590.0,0.67849195]
[1754934989003,0.77628,119600.0,119590.0,0.67849195]
[1754934992495,0.001,119600.0,119590.0,0.67849195]
[1754934992698,0.79468338,119600.0,119590.0,1.0626691]